[Event "World Senior chT-50 2019"]
[Site "Rhodes"]
[Date "2019.04.20"]
[Round "5.23"]
[White "Wolf, Sylvia"]
[Black "Kaspi, Alexander"]
[Result "0-1"]
[ECO "B51"]
[WhiteElo "2001"]
[BlackElo "2452"]
[Annotator "ChessBase"]
[PlyCount "58"]
[EventDate "2019.04.16"]
[EventType "team-tourn"]
[EventCountry "GRE"]
[SourceTitle "playchess.com"]
[Source "ChessBase"]
[SourceQuality "1"]
[WhiteTeam "Germany"]
[BlackTeam "Israel"]
[WhiteTeamCountry "GER"]
[BlackTeamCountry "ISR"]
[TimeControl "40/5400+30:1800+30"]

1. e4 {[%emt 0:00:00]} c5 {[%emt 0:00:00]} 2. Nf3 {[%emt 0:00:00]} d6 {[%emt 0:00:00]} 3. Bb5+ {[%emt 0:00:00]} Nd7 {[%emt 0:00:00]} 4. O-O {[%emt 0:00:08]} Ngf6 {[%emt 0:00:00]} 5. Re1 {[%emt 0:00:08]} a6 {[%emt 0:00:52]} 6. Bd3 {[%emt 0:00:17]} e5 {[%emt 0:00:35]} 7. a4 {[%emt 0:01:56]} b6 {[%emt 0:00:22]} 8. c3 {[%emt 0:00:27]} Be7 {[%emt 0:00:07]} 9. Bc2 {[%emt 0:00:36]} O-O {[%emt 0:00:09]} 10. d4 {[%emt 0:02:45]} Bb7 {[%emt 0:02:25]} 11. d5 {[%emt 0:03:21]} Ne8 {[%emt 0:00:47]} 12. c4 {[%emt 0:07:36]} g6 {[%emt 0:00:50]} 13. Nc3 {[%emt 0:02:36]} Ng7 {[%emt 0:00:41]} 14. Rf1 {[%emt 0:07:30]} f5 {[%emt 0:00:39]} 15. Ne1 {[%emt 0:02:14]} f4 {[%emt 0:00:52]} 16. f3 {[%emt 0:04:56]} h5 {[%emt 0:00:20]} 17. g4 {[%emt 0:03:47]} hxg4 {[%emt 0:05:52]} 18. fxg4 {[%emt 0:00:11]} g5 {[%emt 0:00:14]} 19. Qd3 {[%emt 0:09:33]} Kf7 {[%emt 0:00:43]} 20. Bd1 {[%emt 0:14:19]} Rh8 {[%emt 0:00:48]} 21. Rf3 {[%emt 0:15:41]} Rh6 {[%emt 0:00:53]} 22. h3 {[%emt 0:00:54]} Qh8 {[%emt 0:00:07]} 23. Be2 {[%emt 0:03:16]} Nf6 {[%emt 0:00:44]} 24. Ng2 {[%emt 0:01:15]} Qh7 {[%emt 0:00:38]} 25. Bf1 {[%emt 0:02:38]} Rh8 {[%emt 0:00:08]} 26. Ne1 {[%emt 0:02:06]} Bc8 {[%emt 0:01:12]} 27. Bg2 {[%emt 0:02:42]} a5 {[%emt 0:01:45]} 28. Nd1 {[%emt 0:01:28]} Bxg4 {[%emt 0:00:43]} 29. hxg4 {[%emt 0:00:49]} Rh1+ {[%emt 0:00:15]} 0-1

[Event "World Senior chT-50 2019"]
[Site "Rhodes"]
[Date "2019.04.20"]
[Round "5.24"]
[White "Gruenfeld, Yehuda"]
[Black "Jeske, Kirsten"]
[Result "1-0"]
[ECO "B06"]
[WhiteElo "2428"]
[BlackElo "1951"]
[Annotator "NA"]
[PlyCount "51"]
[EventDate "2019.04.16"]
[EventType "team-tourn"]
[EventCountry "GRE"]
[SourceTitle "playchess.com"]
[Source "ChessBase"]
[SourceQuality "1"]
[WhiteTeam "Israel"]
[BlackTeam "Germany"]
[WhiteTeamCountry "ISR"]
[BlackTeamCountry "GER"]
[TimeControl "40/5400+30:1800+30"]

1. e4 {[%emt 0:00:00]} g6 {[%emt 0:00:00]} 2. d4 {[%emt 0:00:00]} Bg7 {[%emt 0:00:00]} 3. Nc3 {[%emt 0:00:00]} d6 {[%emt 0:00:35]} 4. Be3 {[%emt 0:00:32]} Nd7 {[%emt 0:02:58]} 5. Nf3 {[%emt 0:02:12]} e5 {[%emt 0:07:00]} 6. Qd2 {[%emt 0:00:44]} h5 {[%emt 0:12:28]} 7. O-O-O {[%emt 0:00:56]} a6 {[%emt 0:08:18]} 8. Bc4 {[%emt 0:04:02]} Nb6 {[%emt 0:14:27]} 9. Bb3 $18 {[%emt 0:00:45]} exd4 {[%emt 0:01:26]} 10. Bxd4 {[%emt 0:00:37]} Bh6 {[%emt 0:03:03]} 11. Be3 {[%emt 0:00:28]} Bg4 {[%emt 0:03:09]} 12. e5 {[%emt 0:06:21]} Bxf3 {[%emt 0:07:39]} 13. gxf3 {[%emt 0:00:24]} Kf8 {[%emt 0:04:44]} 14. f4 {[%emt 0:03:58]} Nc8 {[%emt 0:06:02]} 15. Qd5 {[%emt 0:00:37]} Rh7 {[%emt 0:01:22]} 16. Qxb7 {[%emt 0:01:28]} Nce7 {[%emt 0:00:29]} 17. exd6 {[%emt 0:02:29]} cxd6 {[%emt 0:01:59]} 18. Rxd6 {[%emt 0:00:21]} Qxd6 {[%emt 0:00:44]} 19. Qxa8+ {[%emt 0:00:06]} Kg7 {[%emt 0:00:34]} 20. Ne4 {[%emt 0:02:43]} Qc7 {[%emt 0:01:23]} 21. Bd4+ {[%emt 0:03:36]} f6 {[%emt 0:00:58]} 22. Nc5 {[%emt 0:01:26]} Bxf4+ {[%emt 0:02:44]} 23. Kb1 {[%emt 0:00:11]} Qb8 {[%emt 0:05:23]} 24. Ne6+ {[%emt 0:00:49]} Kh6 {[%emt 0:00:20]} 25. Qf3 {[%emt 0:01:47]} g5 {[%emt 0:02:14]} 26. h4 {[%emt 0:00:17]} 1-0

[Event "World Senior chT-50 2019"]
[Site "Rhodes"]
[Date "2019.04.20"]
[Round "5.25"]
[White "Frostick, Clive A"]
[Black "Lagerborg, Krister"]
[Result "1/2-1/2"]
[ECO "B51"]
[WhiteElo "2121"]
[BlackElo "2102"]
[Annotator "NA"]
[PlyCount "136"]
[EventDate "2019.04.16"]
[EventType "team-tourn"]
[EventCountry "GRE"]
[SourceTitle "playchess.com"]
[Source "ChessBase"]
[SourceQuality "1"]
[WhiteTeam "England"]
[BlackTeam "Sweden"]
[WhiteTeamCountry "ENG"]
[BlackTeamCountry "SWE"]
[TimeControl "40/5400+30:1800+30"]

1. e4 {[%emt 0:00:00]} c5 {[%emt 0:00:00]} 2. Nf3 {[%emt 0:00:19]} d6 {[%emt 0:00:00]} 3. Bb5+ {[%emt 0:00:26]} Nd7 {[%emt 0:00:14]} 4. c3 {[%emt 0:00:25]} Ngf6 {[%emt 0:01:08]} 5. Qe2 {[%emt 0:00:26]} a6 {[%emt 0:01:22]} 6. Ba4 {[%emt 0:00:42]} b5 {[%emt 0:01:50]} 7. Bc2 {[%emt 0:00:29]} e5 {[%emt 0:02:26]} 8. d4 {[%emt 0:02:21]} Be7 {[%emt 0:04:03]} 9. O-O {[%emt 0:01:46]} O-O {[%emt 0:00:31]} 10. Re1 {[%emt 0:02:32]} Re8 {[%emt 0:02:52]} 11. Nbd2 {[%emt 0:05:47]} Qc7 {[%emt 0:06:07]} 12. Nf1 {[%emt 0:17:10]} Bf8 {[%emt 0:01:53]} 13. Ng3 {[%emt 0:13:48]} g6 {[%emt 0:00:29]} 14. d5 {[%emt 0:06:59]} c4 {[%emt 0:02:13]} 15. a4 {[%emt 0:00:56]} Rb8 {[%emt 0:01:52]} 16. axb5 {[%emt 0:01:52]} axb5 {[%emt 0:00:04]} 17. Bd2 {[%emt 0:00:40]} Nc5 {[%emt 0:03:55]} 18. h3 {[%emt 0:05:37]} Nfd7 {[%emt 0:04:57]} 19. Reb1 {[%emt 0:07:35]} Nb6 {[%emt 0:01:53]} 20. Be3 {[%emt 0:02:34]} Bd7 {[%emt 0:03:15]} 21. Nd2 {[%emt 0:04:47]} Ra8 {[%emt 0:02:37]} 22. Qd1 {[%emt 0:04:37]} Nba4 {[%emt 0:03:25]} 23. Ne2 {[%emt 0:02:31]} f5 {[%emt 0:05:17]} 24. f3 {[%emt 0:00:26]} f4 {[%emt 0:01:18]} 25. Bf2 {[%emt 0:00:08]} Nd3 {[%emt 0:10:37]} 26. Bxd3 {[%emt 0:07:36]} cxd3 {[%emt 0:00:26]} 27. Nc1 {[%emt 0:00:08]} Nxb2 {[%emt 0:01:13]} 28. Qb3 {[%emt 0:00:46]} Nc4 {[%emt 0:02:47]} 29. Qd1 {[%emt 0:01:41]} Rxa1 {[%emt 0:04:13]} 30. Rxa1 {[%emt 0:00:07]} Nb2 {[%emt 0:07:17]} 31. Qb3 {[%emt 0:00:45]} Na4 {[%emt 0:00:11]} 32. Nxd3 {[%emt 0:03:56]} Qxc3 {[%emt 0:01:20]} 33. Qxc3 {[%emt 0:00:29]} Nxc3 {[%emt 0:00:07]} 34. Ra7 {[%emt 0:00:33]} Bc8 {[%emt 0:01:51]} 35. Bh4 {[%emt 0:02:38]} Ne2+ {[%emt 0:02:09]} 36. Kf1 {[%emt 0:01:22]} Nd4 {[%emt 0:00:03]} 37. Nb4 {[%emt 0:01:13]} h6 {[%emt 0:02:44]} 38. Bf2 {[%emt 0:01:17]} Re7 {[%emt 0:01:36]} 39. Rxe7 {[%emt 0:00:44]} Bxe7 {[%emt 0:00:01]} 40. Bxd4 {[%emt 0:00:00]} exd4 {[%emt 0:00:00]} 41. Ke2 {[%emt 0:00:49]} Bd8 {[%emt 0:05:47]} 42. Nc6 {[%emt 0:04:15]} Bf6 {[%emt 0:01:15]} 43. Kd3 {[%emt 0:01:18]} g5 {[%emt 0:02:32]} 44. Nb3 {[%emt 0:00:50]} h5 {[%emt 0:00:42]} 45. Nbxd4 {[%emt 0:01:04]} Bxd4 {[%emt 0:00:48]} 46. Kxd4 {[%emt 0:00:31]} Kf7 {[%emt 0:00:44]} 47. e5 {[%emt 0:01:17]} dxe5+ {[%emt 0:00:52]} 48. Kxe5 {[%emt 0:01:16]} Ke8 {[%emt 0:03:58]} 49. Kd4 {[%emt 0:11:37]} Bf5 {[%emt 0:03:59]} 50. Nb4 {[%emt 0:01:00]} g4 {[%emt 0:08:00]} 51. hxg4 {[%emt 0:00:22]} hxg4 {[%emt 0:00:04]} 52. Ke5 {[%emt 0:00:08]} gxf3 {[%emt 0:01:42]} 53. gxf3 {[%emt 0:00:05]} Bh3 {[%emt 0:01:19]} 54. Kxf4 {[%emt 0:00:28]} Bg2 {[%emt 0:00:23]} 55. Ke3 {[%emt 0:00:36]} Kd7 {[%emt 0:00:47]} 56. f4 {[%emt 0:01:50]} Kd6 {[%emt 0:02:24]} 57. Kd4 {[%emt 0:00:05]} Bh3 {[%emt 0:00:51]} 58. Nc2 {[%emt 0:01:13]} Bf5 {[%emt 0:05:29]} 59. Ne3 {[%emt 0:00:10]} Bg6 {[%emt 0:03:24]} 60. f5 {[%emt 0:00:07]} Bf7 {[%emt 0:00:54]} 61. f6 {[%emt 0:02:20]} Bg6 {[%emt 0:01:03]} 62. Ng2 {[%emt 0:04:18]} Bh5 {[%emt 0:01:53]} 63. Nf4 {[%emt 0:00:25]} Bf7 {[%emt 0:00:18]} 64. Ke4 {[%emt 0:04:58]} b4 {[%emt 0:00:40]} 65. Kd4 {[%emt 0:00:10]} b3 {[%emt 0:00:31]} 66. Kc3 {[%emt 0:00:34]} Ke5 {[%emt 0:00:38]} 67. Kxb3 {[%emt 0:01:03]} Kxf4 {[%emt 0:00:19]} 68. Kc4 {[%emt 0:00:44]} Ke5 {[%emt 0:00:10]} 1/2-1/2

[Event "World Senior chT-50 2019"]
[Site "Rhodes"]
[Date "2019.04.20"]
[Round "5.26"]
[White "Gamback, Bjorn"]
[Black "Fraser-Mitchell, Jeremy N"]
[Result "1-0"]
[ECO "D32"]
[WhiteElo "2101"]
[BlackElo "2073"]
[Annotator "NA"]
[PlyCount "55"]
[EventDate "2019.04.16"]
[EventType "team-tourn"]
[EventCountry "GRE"]
[SourceTitle "playchess.com"]
[Source "ChessBase"]
[SourceQuality "1"]
[WhiteTeam "Sweden"]
[BlackTeam "England"]
[WhiteTeamCountry "SWE"]
[BlackTeamCountry "ENG"]
[TimeControl "40/5400+30:1800+30"]

1. d4 {[%emt 0:00:00]} Nf6 {[%emt 0:00:00]} 2. Nf3 {[%emt 0:00:00]} d5 {[%emt 0:00:05]} 3. c4 {[%emt 0:00:00]} e6 {[%emt 0:02:32]} 4. Nc3 {[%emt 0:00:02]} c5 {[%emt 0:01:53]} 5. cxd5 {[%emt 0:00:34]} exd5 {[%emt 0:00:07]} 6. Bg5 {[%emt 0:00:16]} Be7 {[%emt 0:02:06]} 7. dxc5 {[%emt 0:00:57]} Be6 {[%emt 0:01:28]} 8. e3 {[%emt 0:05:29]} O-O {[%emt 0:00:28]} 9. Rc1 {[%emt 0:04:11]} Nc6 {[%emt 0:03:59]} 10. a3 {[%emt 0:03:16]} Rc8 {[%emt 0:15:22]} 11. Be2 {[%emt 0:15:42]} h6 {[%emt 0:09:00]} 12. Bxf6 {[%emt 0:00:18]} Bxf6 {[%emt 0:03:43]} 13. O-O {[%emt 0:01:32]} Re8 {[%emt 0:04:50]} 14. Nb5 {[%emt 0:10:13]} Be7 {[%emt 0:03:42]} 15. b4 {[%emt 0:00:58]} a5 {[%emt 0:00:00]} 16. Nbd4 {[%emt 0:01:00]} axb4 {[%emt 0:00:00]} 17. Nxc6 {[%emt 0:07:27]} bxc6 {[%emt 0:00:00]} 18. axb4 {[%emt 0:01:38]} Bf6 {[%emt 0:00:00]} 19. Nd4 {[%emt 0:00:07]} Bd7 {[%emt 0:00:00]} 20. Bf3 {[%emt 0:10:39]} Be5 21. b5 {[%emt 0:08:12]} cxb5 {[%emt 0:03:36]} 22. Bxd5 {[%emt 0:00:00]} Qc7 {[%emt 0:07:24]} 23. Qh5 {[%emt 0:00:00]} Re7 {[%emt 0:01:47]} 24. c6 {[%emt 0:02:37]} Be6 {[%emt 0:03:41]} 25. Bxe6 {[%emt 0:00:56]} fxe6 {[%emt 0:00:14]} 26. Nxb5 {[%emt 0:01:39]} Qb8 {[%emt 0:00:09]} 27. Rb1 {[%emt 0:01:28]} Kh7 {[%emt 0:04:09]} 28. c7 {[%emt 0:07:59]} 1-0

[Event "World Senior chT-50 2019"]
[Site "Rhodes"]
[Date "2019.04.20"]
[Round "5.27"]
[White "Jackson, Sheila"]
[Black "Franzen, Thomas"]
[Result "1/2-1/2"]
[ECO "C01"]
[WhiteElo "2051"]
[BlackElo "2015"]
[Annotator "NA"]
[PlyCount "69"]
[EventDate "2019.04.16"]
[EventType "team-tourn"]
[EventCountry "GRE"]
[SourceTitle "playchess.com"]
[Source "ChessBase"]
[SourceQuality "1"]
[WhiteTeam "England"]
[BlackTeam "Sweden"]
[WhiteTeamCountry "ENG"]
[BlackTeamCountry "SWE"]
[TimeControl "40/5400+30:1800+30"]

1. e4 {[%emt 4:05:54]} e6 {[%emt 0:00:12]} 2. d4 {[%emt 0:01:21]} d5 {[%emt 0:00:12]} 3. exd5 {[%emt 0:02:34]} exd5 {[%emt 0:00:12]} 4. Bd3 {[%emt 0:00:35]} Bd6 {[%emt 0:00:49]} 5. Nf3 {[%emt 0:00:52]} Nc6 {[%emt 0:04:26]} 6. c3 {[%emt 0:00:30]} Nge7 {[%emt 0:00:30]} 7. Qc2 {[%emt 0:05:07]} Bg4 {[%emt 0:03:58]} 8. Nbd2 {[%emt 0:02:18]} Qd7 {[%emt 0:03:46]} 9. O-O {[%emt 0:01:01]} Bf5 {[%emt 0:07:34]} 10. Re1 {[%emt 0:02:04]} O-O {[%emt 0:02:19]} 11. Nf1 {[%emt 0:03:22]} Bxd3 {[%emt 0:03:26]} 12. Qxd3 {[%emt 0:00:08]} Qf5 {[%emt 0:04:38]} 13. Qxf5 {[%emt 0:02:55]} Nxf5 {[%emt 0:00:22]} 14. Bd2 {[%emt 0:10:42]} Rfe8 {[%emt 0:05:21]} 15. g4 {[%emt 0:03:05]} Rxe1 {[%emt 0:03:14]} 16. Rxe1 {[%emt 0:00:16]} Nfe7 {[%emt 0:00:04]} 17. Ng3 {[%emt 0:04:11]} Kf8 {[%emt 0:02:26]} 18. Kf1 {[%emt 0:05:40]} Ng6 {[%emt 0:17:23]} 19. Nf5 {[%emt 0:03:08]} Bf4 {[%emt 0:00:20]} 20. Be3 {[%emt 0:10:30]} Nd8 {[%emt 0:08:40]} 21. h4 {[%emt 0:03:00]} Bxe3 {[%emt 0:03:20]} 22. fxe3 {[%emt 0:04:42]} Ne6 {[%emt 0:03:20]} 23. h5 {[%emt 0:01:52]} Ne7 {[%emt 0:00:09]} 24. Nxe7 {[%emt 0:01:53]} Kxe7 {[%emt 0:02:46]} 25. e4 {[%emt 0:01:05]} dxe4 {[%emt 0:01:55]} 26. Rxe4 {[%emt 0:00:02]} Kd6 {[%emt 0:00:36]} 27. c4 {[%emt 0:04:06]} Rf8 {[%emt 0:01:54]} 28. d5 {[%emt 0:09:26]} Nc5 {[%emt 0:00:56]} 29. Re3 {[%emt 0:01:48]} a5 {[%emt 0:02:35]} 30. Nd4 {[%emt 0:05:00]} g6 {[%emt 0:00:18]} 31. Nb5+ {[%emt 0:02:27]} Kd7 {[%emt 0:00:13]} 32. Kg2 {[%emt 0:02:51]} f5 {[%emt 0:04:13]} 33. hxg6 {[%emt 0:01:21]} hxg6 {[%emt 0:00:10]} 34. gxf5 {[%emt 0:00:07]} gxf5 {[%emt 0:03:59]} 35. Nd4 {[%emt 0:00:00]} 1/2-1/2

[Event "World Senior chT-50 2019"]
[Site "Rhodes"]
[Date "2019.04.20"]
[Round "5.28"]
[White "Johansson, Bjorn"]
[Black "Homer, Stephen J"]
[Result "0-1"]
[ECO "A25"]
[WhiteElo "1888"]
[BlackElo "2039"]
[Annotator "NA"]
[PlyCount "39"]
[EventDate "2019.04.16"]
[EventType "team-tourn"]
[EventCountry "GRE"]
[SourceTitle "playchess.com"]
[Source "ChessBase"]
[SourceQuality "1"]
[WhiteTeam "Sweden"]
[BlackTeam "England"]
[WhiteTeamCountry "SWE"]
[BlackTeamCountry "ENG"]
[TimeControl "40/5400+30:1800+30"]

1. c4 {[%emt 0:00:00]} e5 {[%emt 0:00:16]} 2. g3 {[%emt 0:00:00]} Nc6 {[%emt 0:02:55]} 3. Bg2 {[%emt 0:00:03]} Bc5 {[%emt 0:04:29]} 4. e3 {[%emt 0:01:43]} d6 {[%emt 0:01:20]} 5. a3 {[%emt 0:00:31]} a5 {[%emt 0:00:45]} 6. Nc3 {[%emt 0:00:15]} Nf6 {[%emt 0:08:54]} 7. Nge2 {[%emt 0:02:48]} O-O {[%emt 0:00:51]} 8. O-O {[%emt 0:04:26]} Bb6 {[%emt 0:02:10]} 9. Rb1 {[%emt 0:02:40]} Bf5 {[%emt 0:00:15]} 10. d3 {[%emt 0:00:27]} Qd7 {[%emt 0:01:38]} 11. b4 {[%emt 0:01:10]} axb4 {[%emt 0:00:02]} 12. axb4 {[%emt 0:00:11]} Bh3 {[%emt 0:01:34]} 13. b5 {[%emt 0:01:10]} Bxg2 {[%emt 0:00:41]} 14. Kxg2 {[%emt 0:00:09]} Ne7 {[%emt 0:02:36]} 15. e4 {[%emt 0:01:55]} Ne8 {[%emt 0:06:43]} 16. f4 {[%emt 0:03:47]} f5 {[%emt 0:00:47]} 17. fxe5 {[%emt 0:00:55]} dxe5 {[%emt 0:00:18]} 18. Bg5 {[%emt 0:01:00]} Nf6 {[%emt 0:01:39]} 19. exf5 {[%emt 0:01:17]} Nxf5 {[%emt 0:00:59]} 20. Bxf6 {[%emt 0:01:02]} 0-1

[Event "World Senior chT-50 2019"]
[Site "Rhodes"]
[Date "2019.04.20"]
[Round "5.29"]
[White "Strutinskaia, Galina"]
[Black "Priedite, Ingrida"]
[Result "1-0"]
[ECO "E44"]
[WhiteElo "2208"]
[BlackElo "2044"]
[Annotator "NA"]
[PlyCount "81"]
[EventDate "2019.04.16"]
[EventType "team-tourn"]
[EventCountry "GRE"]
[SourceTitle "playchess.com"]
[Source "ChessBase"]
[SourceQuality "1"]
[WhiteTeam "Russia"]
[BlackTeam "Latvia"]
[WhiteTeamCountry "RUS"]
[BlackTeamCountry "LAT"]
[TimeControl "40/5400+30:1800+30"]

1. d4 {[%emt 0:00:00]} Nf6 {[%emt 0:00:00]} 2. c4 {[%emt 0:00:00]} e6 {[%emt 0:00:00]} 3. Nc3 {[%emt 0:00:00]} Bb4 {[%emt 0:00:01]} 4. e3 {[%emt 0:00:00]} O-O {[%emt 0:00:29]} 5. Nge2 {[%emt 0:00:00]} b6 {[%emt 0:02:51]} 6. a3 {[%emt 0:00:10]} Bxc3+ {[%emt 0:00:13]} 7. Nxc3 {[%emt 0:00:06]} Bb7 {[%emt 0:00:40]} 8. Bd3 {[%emt 0:00:10]} d6 {[%emt 0:03:13]} 9. e4 {[%emt 0:02:09]} e5 {[%emt 0:04:49]} 10. d5 {[%emt 0:00:57]} a5 {[%emt 0:04:30]} 11. Bg5 {[%emt 0:02:40]} Nbd7 {[%emt 0:03:52]} 12. O-O {[%emt 0:04:11]} h6 {[%emt 0:02:22]} 13. Be3 {[%emt 0:02:54]} Bc8 {[%emt 0:05:36]} 14. b4 {[%emt 0:01:07]} axb4 {[%emt 0:00:50]} 15. axb4 {[%emt 0:00:02]} Rxa1 {[%emt 0:01:02]} 16. Qxa1 {[%emt 0:00:02]} Ne8 {[%emt 0:14:35]} 17. Qa8 {[%emt 0:01:38]} Ndf6 {[%emt 0:00:38]} 18. f3 {[%emt 0:05:01]} Nh5 {[%emt 0:01:53]} 19. g3 {[%emt 0:00:44]} Nef6 {[%emt 0:01:14]} 20. Rc1 {[%emt 0:01:57]} Bd7 {[%emt 0:02:16]} 21. Qxd8 {[%emt 0:01:36]} Rxd8 {[%emt 0:00:02]} 22. Ra1 {[%emt 0:00:08]} Ne8 {[%emt 0:01:59]} 23. Ra7 {[%emt 0:00:51]} Rb8 {[%emt 0:01:21]} 24. Kf2 {[%emt 0:08:09]} g5 {[%emt 0:00:53]} 25. Be2 {[%emt 0:02:11]} Nhg7 {[%emt 0:02:33]} 26. f4 {[%emt 0:03:48]} f6 {[%emt 0:03:08]} 27. Bd1 {[%emt 0:01:58]} Kf7 {[%emt 0:04:29]} 28. h4 {[%emt 0:00:59]} exf4 {[%emt 0:12:15]} 29. gxf4 {[%emt 0:00:32]} gxf4 {[%emt 0:10:59]} 30. Bxf4 {[%emt 0:00:13]} h5 {[%emt 0:00:11]} 31. Ke3 {[%emt 0:02:59]} Ke7 {[%emt 0:02:07]} 32. Be2 {[%emt 0:01:50]} Kd8 {[%emt 0:01:31]} 33. Ra1 {[%emt 0:00:49]} Ke7 {[%emt 0:00:22]} 34. Kd4 {[%emt 0:00:48]} c5+ {[%emt 0:01:44]} 35. dxc6 {[%emt 0:00:25]} Bxc6 {[%emt 0:00:05]} 36. Nd5+ {[%emt 0:01:46]} Ke6 {[%emt 0:09:19]} 37. Bh6 {[%emt 0:04:20]} f5 {[%emt 0:02:12]} 38. Bd3 {[%emt 0:09:10]} fxe4 {[%emt 0:01:30]} 39. Bxe4 {[%emt 0:00:04]} Nf5+ {[%emt 0:00:16]} 40. Bxf5+ {[%emt 0:00:00]} Kxf5 {[%emt 0:00:00]} 41. Ne7+ {[%emt 0:00:13] Ke4+ Kxe4 [%clk 01:13:53]} 1-0

[Event "World Senior chT-50 2019"]
[Site "Rhodes"]
[Date "2019.04.20"]
[Round "5.30"]
[White "Goldmane, Astra"]
[Black "Grabuzova, Tatiana"]
[Result "0-1"]
[ECO "C07"]
[WhiteElo "2020"]
[BlackElo "2323"]
[Annotator "NA"]
[PlyCount "114"]
[EventDate "2019.04.16"]
[EventType "team-tourn"]
[EventCountry "GRE"]
[SourceTitle "playchess.com"]
[Source "ChessBase"]
[SourceQuality "1"]
[WhiteTeam "Latvia"]
[BlackTeam "Russia"]
[WhiteTeamCountry "LAT"]
[BlackTeamCountry "RUS"]
[TimeControl "40/5400+30:1800+30"]

1. e4 {[%emt 0:00:00]} e6 {[%emt 0:00:00]} 2. d4 {[%emt 0:00:00]} d5 {[%emt 0:00:00]} 3. Nd2 {[%emt 0:00:01]} a6 {[%emt 0:00:00]} 4. c3 {[%emt 0:00:41]} c5 {[%emt 0:00:28]} 5. Ngf3 {[%emt 0:02:29]} Nc6 {[%emt 0:02:40]} 6. exd5 {[%emt 0:04:01]} exd5 {[%emt 0:00:18]} 7. dxc5 {[%emt 0:00:23]} Bxc5 {[%emt 0:00:11]} 8. Nb3 {[%emt 0:00:20]} Bb6 {[%emt 0:04:44]} 9. Bd3 {[%emt 0:11:11]} Nf6 {[%emt 0:02:08]} 10. O-O {[%emt 0:00:12]} O-O {[%emt 0:00:24]} 11. Nbd4 {[%emt 0:04:23]} Bg4 {[%emt 0:05:49]} 12. Qc2 {[%emt 0:13:10]} Re8 {[%emt 0:22:10]} 13. Bf4 {[%emt 0:05:55]} Bxf3 {[%emt 0:20:30]} 14. Nxf3 {[%emt 0:01:35]} h6 {[%emt 0:00:46]} 15. Rae1 {[%emt 0:08:01]} Rxe1 {[%emt 0:05:01]} 16. Rxe1 {[%emt 0:00:39]} Bc7 {[%emt 0:00:11]} 17. Qd2 {[%emt 0:05:07]} Bxf4 {[%emt 0:04:28]} 18. Qxf4 {[%emt 0:00:06]} Qb6 {[%emt 0:00:16]} 19. Re2 {[%emt 0:04:51]} Re8 {[%emt 0:05:38]} 20. Rxe8+ {[%emt 0:02:09]} Nxe8 {[%emt 0:00:07]} 21. Qe3 {[%emt 0:07:24]} Qxe3 {[%emt 0:00:47]} 22. fxe3 {[%emt 0:00:01]} Nf6 {[%emt 0:02:00]} 23. Nd2 {[%emt 0:01:06]} Ne5 {[%emt 0:00:35]} 24. Be2 {[%emt 0:00:21]} Kf8 {[%emt 0:05:28]} 25. h3 {[%emt 0:01:03]} Ke7 {[%emt 0:00:22]} 26. Bf3 {[%emt 0:00:31]} Kd6 {[%emt 0:03:34]} 27. Kf1 {[%emt 0:09:41]} Nd3 {[%emt 0:05:27]} 28. b3 {[%emt 0:00:26]} b5 {[%emt 0:02:10]} 29. a3 {[%emt 0:01:10]} Nc5 {[%emt 0:00:36]} 30. c4 {[%emt 0:06:04]} bxc4 {[%emt 0:01:03]} 31. bxc4 {[%emt 0:00:02]} Nce4 {[%emt 0:00:27]} 32. Nxe4+ {[%emt 0:03:14]} dxe4 {[%emt 0:00:06]} 33. Be2 {[%emt 0:00:17]} Nd7 {[%emt 0:00:12]} 34. Ke1 {[%emt 0:00:36]} Kc5 {[%emt 0:00:39]} 35. Kd2 {[%emt 0:00:18]} Ne5 {[%emt 0:01:01]} 36. Kc3 {[%emt 0:00:03]} f5 {[%emt 0:01:17]} 37. g4 {[%emt 0:03:25]} fxg4 {[%emt 0:00:25]} 38. hxg4 {[%emt 0:00:01]} g6 {[%emt 0:00:59]} 39. Kb3 {[%emt 0:00:50]} Nf3 {[%emt 0:00:36]} 40. Kc3 {[%emt 0:00:00]} h5 {[%emt 0:00:00]} 41. gxh5 {[%emt 0:06:12]} gxh5 {[%emt 0:01:34]} 42. Bd1 {[%emt 0:00:14]} h4 {[%emt 0:00:52]} 43. Be2 {[%emt 0:07:53]} a5 {[%emt 0:06:39]} 44. Bf1 {[%emt 0:11:20]} a4 {[%emt 0:01:02]} 45. Kc2 {[%emt 0:02:11]} Ng5 {[%emt 0:01:34]} 46. Kd2 {[%emt 0:01:05]} h3 {[%emt 0:06:43]} 47. Kc3 {[%emt 0:01:04]} h2 {[%emt 0:01:22]} 48. Bg2 {[%emt 0:00:02]} Nf3 {[%emt 0:03:49]} 49. Bh1 {[%emt 0:00:06]} Ne5 {[%emt 0:00:27]} 50. Bxe4 {[%emt 0:00:52]} Nxc4 {[%emt 0:00:04]} 51. Kd3 {[%emt 0:07:29]} Nxa3 {[%emt 0:00:12]} 52. Bh1 {[%emt 0:01:02]} Nc4 {[%emt 0:00:26]} 53. e4 {[%emt 0:00:01]} Kb4 {[%emt 0:00:24]} 54. Kc2 {[%emt 0:00:38]} a3 {[%emt 0:00:36]} 55. Kb1 {[%emt 0:00:29]} Kb3 {[%emt 0:00:12]} 56. e5 {[%emt 0:00:45]} a2+ {[%emt 0:00:17]} 57. Ka1 {[%emt 0:00:07]} Ne3 {[%emt 0:00:06]} 0-1